[Event "Chessity Nationale Pupillendag 2019 - Groep F"]
[Site "Meppel, Netherlands"]
[Date "2019.06.29"]
[Round "4.5"]
[White "Aubel, Daan"]
[Black "Koster, Benjamin"]
[Result "1-0"]
[TimeControl "15 min + 10 sec"]
[WhiteElo "859"]
[BlackElo "541"]

1. e4 {[%clk 00:15:19]} {[%emt 00:00:01]} e5 {[%clk 00:15:20]} {[%emt
00:00:02]} 2. Nf3 {[%clk 00:15:27]} Nc6 {[%clk 00:15:28]} {[%emt 00:00:02]} 3.
Bb5 {[%clk 00:15:35]} {[%emt 00:00:01]} Nf6 {[%clk 00:15:33]} {[%emt 00:00:05]}
4. d3 {[%clk 00:15:42]} {[%emt 00:00:04]} Nd4 {[%clk 00:15:40]} {[%emt
00:00:02]} 5. Nc3 {[%clk 00:15:43]} {[%emt 00:00:09]} Bb4 {[%clk 00:15:46]}
{[%emt 00:00:05]} 6. Bc4 {[%clk 00:15:46]} {[%emt 00:00:07]} O-O {[%clk
00:15:48]} {[%emt 00:00:08]} 7. Bd2 {[%clk 00:15:48]} {[%emt 00:00:07]} d6
{[%clk 00:15:53]} {[%emt 00:00:06]} 8. a3 {[%clk 00:15:48]} {[%emt 00:00:10]}
Bxc3 {[%clk 00:16:00]} {[%emt 00:00:02]} 9. Bxc3 {[%clk 00:15:55]} {[%emt
00:00:04]} Bg4 {[%clk 00:16:02]} {[%emt 00:00:08]} 10. h3 {[%clk 00:15:50]}
{[%emt 00:00:14]} Nxf3+ {[%emt 00:00:04]} 11. gxf3 {[%emt 00:00:04]} Bh5 {[%emt
00:00:05]} 12. Qe2 {[%emt 00:00:10]} Qd7 {[%clk 00:15:43]} {[%emt 00:00:07]} 13.
O-O-O {[%clk 00:15:54]} {[%emt 00:00:06]} b5 {[%clk 00:15:52]} {[%emt
00:00:01]} 14. Ba2 {[%clk 00:15:56]} {[%emt 00:00:08]} Rab8 {[%clk 00:15:41]}
{[%emt 00:00:20]} 15. Rdg1 {[%clk 00:15:53]} {[%emt 00:00:13]} g6 {[%clk
00:15:48]} {[%emt 00:00:04]} 16. Rh2 {[%clk 00:15:16]} {[%emt 00:00:46]} Rbe8
{[%clk 00:15:18]} {[%emt 00:00:40]} 17. Qe3 {[%clk 00:15:07]} {[%emt 00:00:19]}
d5 {[%clk 00:15:26]} {[%emt 00:00:03]} 18. Qg5 {[%clk 00:15:00]} {[%emt
00:00:17]} d4 {[%clk 00:15:14]} {[%emt 00:00:22]} 19. Bb4 {[%clk 00:14:57]}
{[%emt 00:00:13]} c5 {[%clk 00:14:27]} {[%emt 00:00:57]} 20. Bxc5 {[%clk
00:15:01]} {[%emt 00:00:06]} Rc8 {[%clk 00:14:34]} {[%emt 00:00:02]} 21. Bxf8
{[%clk 00:15:05]} {[%emt 00:00:06]} Qc7 {[%clk 00:14:39]} {[%emt 00:00:06]} 22.
Bb1 {[%emt 00:00:14]} Qa5 {[%clk 00:14:35]} {[%emt 00:00:06]} 23. Qxf6 {[%clk
00:15:07]} {[%emt 00:00:11]} Rxc2+ {[%clk 00:14:38]} {[%emt 00:00:08]} 24. Bxc2
{[%clk 00:15:11]} {[%emt 00:00:05]} Kxf8 {[%clk 00:14:46]} {[%emt 00:00:02]} 25.
Qxe5 {[%clk 00:14:59]} {[%emt 00:00:22]} b4 {[%clk 00:14:41]} {[%emt 00:00:16]}
26. Qxa5 {[%clk 00:15:05]} {[%emt 00:00:04]} Bxf3 {[%clk 00:14:44]} {[%emt
00:00:05]} 27. Qxb4+ {[%clk 00:15:06]} {[%emt 00:00:10]} Kg8 {[%clk 00:14:40]}
{[%emt 00:00:01]} 28. Rg3 Bh5 {[%emt 00:00:17]} 29. Qb8+ {[%clk 00:15:04]}
{[%emt 00:00:07]} Kg7 {[%emt 00:00:02]} 30. Qe5+ {[%emt 00:00:04]} Kg8 {[%clk
00:14:43]} {[%emt 00:00:01]} 31. Qxh5 {[%clk 00:15:12]} {[%emt 00:00:03]} Kf8
{[%clk 00:14:51]} {[%emt 00:00:02]} 32. Qe5 {[%clk 00:15:15]} {[%emt 00:00:07]}
a5 {[%emt 00:00:06]} 33. Rf3 {[%emt 00:00:06]} 1-0

[Event "Chessity Nationale Pupillendag 2019 - Groep F"]
[Site "Meppel, Netherlands"]
[Date "2019.06.29"]
[Round "4.6"]
[White "Van Rijn, Vincent"]
[Black "Denekamp, Elias"]
[Result "1-0"]
[TimeControl "15 min + 10 sec"]
[WhiteElo "779"]
[BlackElo "499"]

1. e4 e5 2. Nf3 Nc6 3. d4 exd4 4. Nxd4 Nxd4 5. Qxd4 c5 6. Qe3 Nf6 7. Bc4 d6 8.
Nc3 Bd7 9. Nd5 Nxd5 10. exd5+ Be7 11. Qg3 Bf6 12. Qxd6 Qe7+ 13. Qxe7+ Bxe7 14.
O-O O-O 15. Bf4 Bf5 16. Rfe1 Bf6 17. c3 Rab8 18. Bxb8 Rxb8 19. f3 b5 20. Be2
Re8 21. Bxb5 Rxe1+ 22. Rxe1 h5 23. d6 a5 24. Re8+ Kh7 25. d7 Bxd7 26. Bxd7 g5
27. Bf5+ Kg7 28. Rc8 g4 29. fxg4 hxg4 30. Bxg4 Be7 31. Kf2 Bh4+ 32. g3 Be7 33.
Ra8 c4 34. Rxa5 Bd8 35. Rd5 Bb6+ 36. Kf3 Bc7 37. Rc5 Bd6 38. Rxc4 Be5 39. Ke4
Bf6 40. h3 Be7 41. Rc7 Bf8 42. Be6 Kg6 43. Bxf7+ Kh6 44. Bd5 Bg7 45. h4 Kh7 46.
h5 Kh8 1-0

[Event "Chessity Nationale Pupillendag 2019 - Groep F"]
[Site "Meppel, Netherlands"]
[Date "2019.06.29"]
[Round "5.1"]
[White "Grooten, Tommy"]
[Black "Kurt, Sascha"]
[Result "1-0"]
[TimeControl "15 min + 10 sec"]
[WhiteElo "1318"]
[BlackElo "789"]

1. e4 {[%clk 00:15:19]} e5 {[%clk 00:15:17]} {[%emt 00:00:04]} 2. Nf3 {[%clk
00:15:28]} Nc6 {[%clk 00:15:22]} {[%emt 00:00:06]} 3. Bc4 {[%clk 00:15:37]}
{[%emt 00:00:01]} Bc5 {[%clk 00:15:26]} {[%emt 00:00:06]} 4. c3 {[%clk
00:15:45]} {[%emt 00:00:02]} Nf6 {[%clk 00:15:16]} {[%emt 00:00:20]} 5. d3
{[%clk 00:15:52]} {[%emt 00:00:03]} d6 {[%clk 00:15:11]} {[%emt 00:00:16]} 6.
Nbd2 {[%clk 00:15:58]} {[%emt 00:00:04]} Be6 {[%emt 00:00:13]} 7. Bb3 {[%clk
00:16:01]} {[%emt 00:00:06]} Na5 {[%clk 00:15:09]} {[%emt 00:00:10]} 8. Bxe6
{[%clk 00:15:44]} {[%emt 00:00:26]} fxe6 {[%clk 00:15:17]} {[%emt 00:00:02]} 9.
b4 {[%clk 00:15:53]} {[%emt 00:00:01]} Bxf2+ {[%clk 00:15:04]} {[%emt
00:00:23]} 10. Kxf2 {[%clk 00:16:00]} {[%emt 00:00:03]} Ng4+ {[%clk 00:15:09]}
{[%emt 00:00:05]} 11. Ke1 {[%clk 00:15:52]} {[%emt 00:00:17]} Ne3 {[%clk
00:15:02]} {[%emt 00:00:17]} 12. Qa4+ {[%clk 00:15:40]} {[%emt 00:00:22]} Nc6
{[%clk 00:14:46]} {[%emt 00:00:26]} 13. Rg1 {[%clk 00:15:31]} {[%emt 00:00:20]}
O-O {[%clk 00:14:17]} {[%emt 00:00:40]} 14. Ke2 {[%clk 00:14:41]} {[%emt
00:00:59]} Ng4 {[%clk 00:14:20]} {[%emt 00:00:07]} 15. h3 {[%clk 00:14:46]}
{[%emt 00:00:05]} Nf6 {[%clk 00:14:10]} {[%emt 00:00:20]} 16. Qb3 {[%clk
00:14:44]} {[%emt 00:00:12]} Qd7 {[%clk 00:14:11]} {[%emt 00:00:09]} 17. Nf1
{[%clk 00:14:18]} {[%emt 00:00:35]} d5 {[%clk 00:14:04]} {[%emt 00:00:18]} 18.
exd5 {[%clk 00:14:14]} {[%emt 00:00:13]} Nxd5 {[%clk 00:13:53]} {[%emt
00:00:21]} 19. Be3 {[%clk 00:13:37]} {[%emt 00:00:47]} Nxe3 {[%clk 00:13:47]}
{[%emt 00:00:16]} 20. Nxe3 {[%clk 00:13:45]} {[%emt 00:00:02]} Rad8 {[%clk
00:13:35]} {[%emt 00:00:23]} 21. Rad1 {[%clk 00:13:49]} {[%emt 00:00:05]} Rf4
{[%clk 00:12:55]} {[%emt 00:00:50]} 22. Rgf1 {[%clk 00:12:14]} {[%emt
00:01:45]} a5 {[%clk 00:12:53]} {[%emt 00:00:11]} 23. b5 {[%clk 00:12:11]}
{[%emt 00:00:12]} a4 {[%clk 00:12:56]} {[%emt 00:00:08]} 24. Qa3 {[%clk
00:12:01]} {[%emt 00:00:20]} Ne7 {[%clk 00:12:31]} {[%emt 00:00:34]} 25. Nxe5
{[%clk 00:11:50]} {[%emt 00:00:22]} Rxf1 {[%clk 00:12:16]} {[%emt 00:00:25]} 26.
Nxd7 {[%clk 00:11:48]} {[%emt 00:00:11]} Rxd1 {[%clk 00:12:22]} {[%emt
00:00:04]} 27. Qxe7 {[%clk 00:11:37]} {[%emt 00:00:21]} Rxd7 {[%clk 00:15:10]}
{[%emt 00:00:31]} 28. Qe8# 1-0

[Event "Chessity Nationale Pupillendag 2019 - Groep F"]
[Site "Meppel, Netherlands"]
[Date "2019.06.29"]
[Round "5.2"]
[White "Vijver, Jonathan"]
[Black "Bultstra, Tycho"]
[Result "1-0"]
[TimeControl "15 min + 10 sec"]
[WhiteElo "948"]
[BlackElo "559"]

1. e4 {[%clk 00:15:18]} {[%emt 00:15:49]} e5 {[%clk 00:15:19]} {[%emt
00:00:02]} 2. Nf3 {[%clk 00:15:27]} Nc6 {[%clk 00:15:27]} {[%emt 00:00:02]} 3.
d4 {[%clk 00:15:37]} exd4 {[%clk 00:15:29]} {[%emt 00:00:08]} 4. Bc4 {[%clk
00:15:46]} {[%emt 00:00:02]} Bc5 {[%clk 00:15:24]} {[%emt 00:00:16]} 5. c3
{[%clk 00:15:54]} dxc3 {[%clk 00:15:29]} {[%emt 00:00:05]} 6. Bxf7+ {[%clk
00:16:02]} {[%emt 00:00:01]} Kxf7 {[%clk 00:15:33]} {[%emt 00:00:06]} 7. Qd5+
{[%clk 00:16:11]} {[%emt 00:00:02]} Kf8 {[%clk 00:15:31]} {[%emt 00:00:12]} 8.
Qxc5+ {[%clk 00:16:19]} {[%emt 00:00:02]} d6 {[%clk 00:15:37]} {[%emt
00:00:04]} 9. Qxc3 {[%clk 00:16:27]} {[%emt 00:00:02]} Nf6 {[%clk 00:15:40]}
{[%emt 00:00:08]} 10. Bg5 {[%clk 00:16:26]} {[%emt 00:00:09]} h6 {[%clk
00:15:46]} {[%emt 00:00:04]} 11. Bxf6 {[%clk 00:16:35]} {[%emt 00:00:01]} Qxf6
{[%clk 00:15:50]} {[%emt 00:00:05]} 12. Qxf6+ {[%clk 00:16:43]} {[%emt
00:00:03]} gxf6 {[%clk 00:15:59]} {[%emt 00:00:01]} 13. Nh4 {[%clk 00:16:50]}
{[%emt 00:00:03]} Nd4 {[%clk 00:16:06]} {[%emt 00:00:04]} 14. O-O {[%clk
00:16:57]} {[%emt 00:00:02]} Nc2 {[%clk 00:16:15]} {[%emt 00:00:02]} 15. Ng6+
{[%clk 00:17:06]} {[%emt 00:00:01]} Kg8 {[%clk 00:16:21]} {[%emt 00:00:04]} 16.
Nxh8 {[%clk 00:17:13]} Nxa1 {[%clk 00:16:21]} 17. Na3 {[%clk 00:17:20]} {[%emt
00:00:07]} Kxh8 {[%clk 00:16:36]} 18. Rxa1 {[%clk 00:17:28]} {[%emt 00:00:06]}
c6 {[%clk 00:16:38]} 19. Nc4 {[%clk 00:17:35]} {[%emt 00:00:10]} b5 {[%clk
00:16:47]} 20. Nxd6 {[%clk 00:17:44]} {[%emt 00:00:02]} Be6 {[%clk 00:16:48]}
21. e5 {[%clk 00:17:44]} Rd8 {[%clk 00:16:48]} 22. f4 {[%clk 00:17:54]} {[%emt
00:00:38]} fxe5 23. fxe5 {[%emt 00:00:05]} h5 {[%clk 00:16:29]} {[%emt
00:00:25]} 24. b3 {[%clk 00:18:10]} {[%emt 00:00:04]} Kg7 {[%clk 00:16:33]}
{[%emt 00:00:06]} 25. Rf1 {[%clk 00:18:09]} {[%emt 00:00:11]} a6 {[%clk
00:16:32]} {[%emt 00:00:12]} 26. Nb7 {[%clk 00:18:14]} {[%emt 00:00:05]} Rd5
{[%clk 00:16:34]} {[%emt 00:00:08]} 27. Na5 {[%clk 00:18:04]} {[%emt 00:00:21]}
Rxe5 {[%clk 00:16:32]} {[%emt 00:00:11]} 28. Nxc6 {[%clk 00:18:12]} {[%emt
00:00:02]} Rc5 {[%clk 00:16:32]} {[%emt 00:00:10]} 29. Nd4 {[%clk 00:18:19]}
{[%emt 00:00:03]} Bd7 {[%clk 00:16:18]} {[%emt 00:00:24]} 30. h3 {[%emt
00:00:28]} Kg6 {[%clk 00:16:21]} {[%emt 00:00:03]} 31. Ne2 {[%clk 00:18:01]}
{[%emt 00:00:13]} b4 {[%clk 00:16:27]} {[%emt 00:00:05]} 32. Nf4+ {[%clk
00:18:10]} Kh6 {[%clk 00:16:32]} {[%emt 00:00:05]} 33. Rd1 {[%clk 00:18:09]}
{[%emt 00:00:09]} Bf5 {[%clk 00:16:09]} {[%emt 00:00:34]} 34. Rd6+ {[%clk
00:17:40]} {[%emt 00:00:40]} Kg5 {[%clk 00:16:14]} {[%emt 00:00:05]} 35. Ne6+
{[%clk 00:17:48]} {[%emt 00:00:01]} Kf6 {[%clk 00:16:01]} {[%emt 00:00:24]} 36.
Nxc5+ {[%clk 00:17:56]} {[%emt 00:00:02]} Ke5 {[%clk 00:16:07]} {[%emt
00:00:04]} 37. Rxa6 {[%clk 00:18:03]} {[%emt 00:00:04]} Kd4 {[%clk 00:16:09]}
{[%emt 00:00:07]} 38. Ne6+ {[%clk 00:18:09]} {[%emt 00:00:04]} Ke5 {[%clk
00:16:15]} {[%emt 00:00:05]} 39. Ng7 {[%clk 00:18:11]} {[%emt 00:00:07]} Bd3
{[%clk 00:16:18]} {[%emt 00:00:08]} 40. Ra5+ {[%clk 00:18:17]} {[%emt
00:00:04]} Kd4 {[%clk 00:16:24]} {[%emt 00:00:04]} 41. Nxh5 {[%clk 00:18:24]}
{[%emt 00:00:03]} Be2 {[%clk 00:16:30]} {[%emt 00:00:04]} 42. Nf4 {[%clk
00:18:32]} {[%emt 00:00:02]} Ke3 {[%clk 00:16:32]} {[%emt 00:00:08]} 43. Nxe2
{[%clk 00:18:40]} {[%emt 00:00:02]} Kxe2 {[%clk 00:16:41]} {[%emt 00:00:01]} 44.
h4 {[%clk 00:18:49]} {[%emt 00:00:01]} Ke3 {[%clk 00:16:47]} {[%emt 00:00:03]}
45. h5 {[%clk 00:18:58]} Kd3 {[%clk 00:16:53]} {[%emt 00:00:05]} 46. h6 {[%clk
00:19:06]} {[%emt 00:00:03]} Kc3 {[%clk 00:17:03]} 47. h7 {[%clk 00:19:13]}
{[%emt 00:00:03]} Kd3 {[%clk 00:17:08]} {[%emt 00:00:05]} 48. h8=Q {[%clk
00:19:17]} {[%emt 00:00:05]} Ke4 {[%clk 00:17:15]} {[%emt 00:00:04]} 49. Qe5+
{[%clk 00:19:23]} {[%emt 00:00:03]} Kd3 {[%clk 00:17:24]} {[%emt 00:00:02]} 50.
Rd5+ {[%clk 00:19:30]} {[%emt 00:00:02]} Kc2 {[%clk 00:17:32]} {[%emt
00:00:02]} 51. Qe2+ {[%clk 00:19:36]} {[%emt 00:00:04]} Kc3 {[%clk 00:17:40]}
{[%emt 00:00:02]} 52. Qc4+ {[%clk 00:19:43]} {[%emt 00:00:02]} Kb2 {[%clk
00:17:49]} {[%emt 00:00:03]} 53. Rd2+ {[%clk 00:19:51]} {[%emt 00:00:02]} Kb1
{[%clk 00:17:54]} {[%emt 00:00:06]} 54. Qc2+ {[%clk 00:19:55]} {[%emt
00:00:05]} Ka1 {[%emt 00:00:04]} 55. Rd1# {[%emt 00:00:01]} 1-0

[Event "Chessity Nationale Pupillendag 2019 - Groep F"]
[Site "Meppel, Netherlands"]
[Date "2019.06.29"]
[Round "5.3"]
[White "Witlox, Floris"]
[Black "Sterk, Ralf"]
[Result "0-1"]
[TimeControl "15 min + 10 sec"]
[WhiteElo "675"]
[BlackElo "962"]

1. e4 {[%clk 00:15:19]} e5 {[%clk 00:15:19]} {[%emt 00:00:01]} 2. Nf3 {[%clk
00:15:27]} {[%emt 00:00:02]} Nc6 {[%clk 00:15:28]} {[%emt 00:00:02]} 3. Bc4
{[%clk 00:15:35]} {[%emt 00:00:02]} Bc5 {[%clk 00:15:35]} {[%emt 00:00:03]} 4.
O-O {[%clk 00:15:39]} {[%emt 00:00:05]} d6 {[%clk 00:15:40]} {[%emt 00:00:05]}
5. d3 {[%clk 00:15:47]} {[%emt 00:00:03]} Bg4 {[%clk 00:15:47]} {[%emt
00:00:03]} 6. h3 {[%clk 00:15:53]} Bh5 {[%clk 00:15:55]} {[%emt 00:00:05]} 7.
Nc3 {[%clk 00:16:00]} Nd4 {[%clk 00:16:02]} {[%emt 00:00:06]} 8. Be3 {[%clk
00:15:47]} Nxf3+ {[%clk 00:16:05]} {[%emt 00:00:31]} 9. Bd2 {[%clk 00:15:55]}
Qh4+ {[%clk 00:16:04]} 10. gxf3 {[%clk 00:15:46]} Bxf2+ {[%clk 00:15:57]}
{[%emt 00:00:35]} 11. Kh2 {[%clk 00:15:07]} Bg1+ {[%clk 00:15:43]} {[%emt
00:01:12]} 12. Kxg1 {[%clk 00:15:15]} Qg3+ {[%clk 00:15:45]} {[%emt 00:00:11]}
0-1

[Event "Chessity Nationale Pupillendag 2019 - Groep F"]
[Site "Meppel, Netherlands"]
[Date "2019.06.29"]
[Round "5.4"]
[White "Smets, Cas"]
[Black "Pereira Garza, Cecilia"]
[Result "1-0"]
[TimeControl "15 min + 10 sec"]
[WhiteElo "649"]
[BlackElo "929"]

1. e4 {[%clk 00:15:20]} {[%emt 00:16:34]} e6 {[%clk 00:15:16]} {[%emt
00:00:06]} 2. d4 {[%clk 00:15:26]} {[%emt 00:00:03]} d5 {[%clk 00:15:21]}
{[%emt 00:00:05]} 3. e5 {[%clk 00:15:35]} {[%emt 00:00:01]} c5 {[%clk
00:15:25]} {[%emt 00:00:06]} 4. Nf3 {[%clk 00:15:31]} {[%emt 00:00:13]} Nc6
{[%clk 00:15:20]} {[%emt 00:00:16]} 5. c4 {[%clk 00:15:34]} {[%emt 00:00:07]}
cxd4 {[%emt 00:00:18]} 6. Nxd4 {[%emt 00:00:04]} Bb4+ {[%emt 00:00:12]} 7. Bd2
{[%emt 00:00:09]} Bxd2+ {[%emt 00:00:07]} 8. Qxd2 {[%emt 00:00:04]} Nxe5 {[%emt
00:00:13]} 9. Nc3 {[%emt 00:00:18]} Nxc4 {[%emt 00:00:11]} 10. Bxc4 {[%emt
00:00:14]} dxc4 {[%emt 00:00:05]} 11. O-O-O {[%emt 00:00:11]} Nf6 {[%emt
00:00:13]} 12. f3 {[%emt 00:00:05]} O-O {[%emt 00:00:06]} 13. g4 {[%emt
00:00:02]} a6 {[%emt 00:00:06]} 14. g5 {[%emt 00:00:01]} Nd5 {[%emt 00:00:05]}
15. Nxd5 {[%emt 00:00:11]} exd5 {[%emt 00:00:06]} 16. Ne2 {[%emt 00:00:03]} Be6
{[%emt 00:00:17]} 17. Nd4 {[%emt 00:00:22]} b5 {[%emt 00:00:14]} 18. f4 {[%emt
00:00:05]} Qc7 {[%emt 00:00:15]} 19. f5 {[%emt 00:00:05]} Bd7 {[%emt 00:01:25]}
20. f6 {[%emt 00:00:08]} gxf6 {[%emt 00:00:55]} 21. gxf6 {[%emt 00:00:03]} Kh8
{[%emt 00:00:05]} 22. Qh6 {[%emt 00:00:33]} Rg8 {[%emt 00:00:24]} 23. Rhg1
{[%emt 00:00:04]} Qe5 {[%emt 00:00:26]} 24. Rg7 {[%emt 00:00:06]} Qe4 {[%emt
00:00:53]} 25. Rdg1 {[%emt 00:00:32]} Bf5 {[%emt 00:00:38]} 26. Rxg8+ {[%emt
00:00:06]} Rxg8 {[%emt 00:00:04]} 27. Rxg8+ {[%emt 00:00:02]} Kxg8 {[%emt
00:00:03]} 28. Qg7# 1-0

[Event "Chessity Nationale Pupillendag 2019 - Groep F"]
[Site "Meppel, Netherlands"]
[Date "2019.06.29"]
[Round "5.5"]
[White "Feenstra, Bram"]
[Black "Aubel, Daan"]
[Result "0-1"]
[TimeControl "15 min + 10 sec"]
[WhiteElo "410"]
[BlackElo "859"]

1. e3 {[%clk 00:15:19]} e5 {[%clk 00:15:16]} {[%emt 00:00:04]} 2. Nf3 {[%clk
00:15:25]} {[%emt 00:00:03]} Nc6 {[%clk 00:15:23]} {[%emt 00:00:03]} 3. Nc3
{[%clk 00:15:30]} {[%emt 00:00:05]} Nf6 {[%clk 00:15:26]} {[%emt 00:00:07]} 4.
d4 {[%clk 00:15:34]} {[%emt 00:00:05]} d6 {[%clk 00:15:13]} {[%emt 00:00:24]} 5.
dxe5 {[%clk 00:15:33]} {[%emt 00:00:10]} dxe5 {[%clk 00:15:16]} {[%emt
00:00:08]} 6. Qxd8+ {[%clk 00:15:36]} {[%emt 00:00:06]} Kxd8 {[%clk 00:15:22]}
{[%emt 00:00:05]} 7. Bc4 {[%clk 00:15:26]} {[%emt 00:00:19]} Ke8 {[%clk
00:15:15]} {[%emt 00:00:18]} 8. Nb5 {[%clk 00:15:29]} {[%emt 00:00:07]} Bd6
{[%clk 00:15:08]} {[%emt 00:00:17]} 9. Ng5 {[%clk 00:15:31]} {[%emt 00:00:08]}
Rf8 {[%clk 00:15:06]} {[%emt 00:00:12]} 10. O-O {[%clk 00:15:33]} {[%emt
00:00:07]} h6 {[%clk 00:15:14]} {[%emt 00:00:03]} 11. Nxf7 {[%clk 00:15:32]}
{[%emt 00:00:10]} Rxf7 {[%clk 00:15:21]} {[%emt 00:00:03]} 12. Bxf7+ {[%clk
00:15:39]} {[%emt 00:00:04]} Kxf7 {[%clk 00:15:28]} {[%emt 00:00:03]} 13. Rd1
{[%clk 00:15:21]} {[%emt 00:00:27]} Ke7 {[%clk 00:15:09]} {[%emt 00:00:29]} 14.
b3 {[%clk 00:15:17]} {[%emt 00:00:14]} a6 {[%clk 00:14:56]} {[%emt 00:00:23]}
15. Nc3 {[%clk 00:15:13]} {[%emt 00:00:11]} Bf5 {[%clk 00:14:57]} {[%emt
00:00:13]} 16. h3 {[%clk 00:15:04]} {[%emt 00:00:19]} Bxc2 {[%clk 00:15:01]}
{[%emt 00:00:06]} 17. Rd2 {[%clk 00:14:48]} {[%emt 00:00:26]} Bg6 {[%clk
00:15:07]} {[%emt 00:00:04]} 18. Nd5+ {[%clk 00:14:55]} {[%emt 00:00:04]} Nxd5
{[%clk 00:15:08]} {[%emt 00:00:08]} 19. Rxd5 {[%clk 00:14:59]} {[%emt
00:00:06]} Ke6 {[%clk 00:15:15]} {[%emt 00:00:04]} 20. Rd2 {[%clk 00:14:57]}
{[%emt 00:00:12]} Bb4 {[%clk 00:15:13]} {[%emt 00:00:12]} 21. Re2 {[%clk
00:14:52]} {[%emt 00:00:14]} Bd3 {[%clk 00:15:14]} {[%emt 00:00:10]} 22. a3
{[%clk 00:14:11]} {[%emt 00:00:52]} Bxe2 {[%clk 00:15:09]} {[%emt 00:00:14]} 23.
axb4 {[%clk 00:14:18]} {[%emt 00:00:03]} Nxb4 {[%clk 00:15:12]} {[%emt
00:00:07]} 24. Ba3 {[%clk 00:14:16]} {[%emt 00:00:12]} Nc2 {[%clk 00:15:04]}
{[%emt 00:00:18]} 25. Ra2 {[%clk 00:14:19]} {[%emt 00:00:07]} Nxa3 {[%clk
00:15:12]} {[%emt 00:00:03]} 26. Rxe2 {[%clk 00:14:25]} {[%emt 00:00:04]} Rd8
{[%clk 00:15:21]} {[%emt 00:00:02]} 27. Ra2 {[%clk 00:14:18]} {[%emt 00:00:16]}
Nb5 {[%clk 00:15:27]} {[%emt 00:00:03]} 28. f4 {[%clk 00:14:18]} {[%emt
00:00:10]} Rd3 {[%clk 00:15:08]} {[%emt 00:00:30]} 29. Re2 {[%clk 00:14:15]}
{[%emt 00:00:08]} Rxb3 {[%clk 00:15:06]} {[%emt 00:00:16]} 30. g4 {[%clk
00:14:15]} {[%emt 00:00:09]} Nd6 {[%clk 00:14:54]} {[%emt 00:00:23]} 31. f5+
{[%clk 00:14:19]} {[%emt 00:00:06]} Kf6 {[%clk 00:15:00]} {[%emt 00:00:04]} 32.
h4 {[%clk 00:14:09]} {[%emt 00:00:20]} Nc4 {[%clk 00:14:52]} {[%emt 00:00:17]}
33. g5+ {[%clk 00:14:14]} {[%emt 00:00:05]} hxg5 {[%clk 00:14:13]} {[%emt
00:00:49]} 34. h5 {[%clk 00:14:14]} {[%emt 00:00:10]} Rb1+ {[%clk 00:14:19]}
{[%emt 00:00:04]} 35. Kh2 {[%clk 00:14:16]} {[%emt 00:00:07]} Rb2 {[%clk
00:14:28]} {[%emt 00:00:02]} 36. Rxb2 {[%clk 00:14:24]} {[%emt 00:00:02]} Nxb2
{[%clk 00:14:37]} 37. Kg3 {[%clk 00:14:33]} {[%emt 00:00:01]} a5 {[%clk
00:14:44]} {[%emt 00:00:04]} 38. Kf2 {[%clk 00:14:34]} {[%emt 00:00:08]} a4
{[%clk 00:14:53]} {[%emt 00:00:02]} 39. Ke2 {[%clk 00:14:43]} a3 {[%clk
00:15:02]} {[%emt 00:00:01]} 40. Kd2 {[%clk 00:14:52]} a2 {[%clk 00:15:12]}
{[%emt 00:00:01]} 41. Ke2 {[%clk 00:14:45]} {[%emt 00:00:17]} a1=Q {[%clk
00:15:16]} {[%emt 00:00:06]} 42. Kf3 {[%clk 00:14:51]} {[%emt 00:00:04]} Kxf5
{[%clk 00:15:14]} {[%emt 00:00:12]} 43. e4+ {[%clk 00:14:58]} {[%emt 00:00:03]}
Kf6 {[%clk 00:15:19]} {[%emt 00:00:06]} 44. Kg4 {[%clk 00:15:04]} {[%emt
00:00:01]} Qg1+ {[%clk 00:15:25]} {[%emt 00:00:06]} 45. Kh3 {[%clk 00:15:04]}
{[%emt 00:00:10]} Qh1+ {[%clk 00:15:07]} {[%emt 00:00:28]} 46. Kg3 {[%clk
00:15:12]} {[%emt 00:00:02]} Qxh5 {[%clk 00:15:11]} {[%emt 00:00:06]} 47. Kg2
{[%clk 00:15:20]} {[%emt 00:00:03]} Qg4+ {[%clk 00:15:17]} {[%emt 00:00:05]} 48.
Kh2 {[%clk 00:15:24]} {[%emt 00:00:04]} Nd3 {[%clk 00:15:20]} {[%emt 00:00:08]}
49. Kh1 {[%clk 00:15:27]} {[%emt 00:00:07]} Ne1 {[%clk 00:15:28]} {[%emt
00:00:02]} 50. Kh2 {[%clk 00:15:33]} {[%emt 00:00:03]} Qg2# {[%emt 00:00:08]}
0-1